Workbook

Sheet Sheet1
A1: 烛魔 | B1: 烛魔羽毛 | C1: 烛魔黑麟 | D1: 仙丹 | E1: 月石 | F1: 灵丹 | G1: 灵石 | H1: 红色烛魔黑麟 | I1: 烛魔魂 | J1: 升级费 | K1: 会员/门派 | L1: 合计 | M1: 分层合计 | N1: 高级武魂神物 | O1: 破天武魂神物
A2: 成本 | L2: 900 | M2: =L2 -> 900
A3: 单价 | B3: 12 | C3: 8 | D3: 0.15 | E3: 1.5 | F3: 0.06 | G3: 0.06 | H3: 120 | I3: 45 | K3: 0.75 | N3: 500 | O3: 1500
A4: 2 | B4: 25 | C4: 2 | D4: 20 | E4: 20 | F4: 40 | G4: 40 | J4: 100 | K4: =J4*K3 -> 75 | L4: =B4*B3+C4*C3+D4*D3+E4*E3+F4*F3+G4*G3+H4*H3+I4*I3+K4 -> 428.8 | M4: =L2+L4 -> 1328.8 | N4: 2
A5: 3 | B5: 50 | C5: 2 | D5: 30 | E5: 30 | F5: 60 | G5: 60 | J5: 100 | K5: =J5*K3 -> 75 | L5: =B5*B3+C5*C3+D5*D3+E5*E3+F5*F3+G5*G3+H5*H3+I5*I3+K5 -> 747.7 | M5: =M4+L5 -> 2076.5 | N5: 4
A6: 4 | B6: 60 | C6: 3 | D6: 40 | E6: 40 | F6: 80 | G6: 80 | J6: 100 | K6: =J6*K3 -> 75 | L6: =B6*B3+C6*C3+D6*D3+E6*E3+F6*F3+G6*G3+H6*H3+I6*I3+K6 -> 894.6 | M6: =M5+L6 -> 2971.1 | N6: 6
A7: 5 | B7: 70 | C7: 3 | D7: 55 | E7: 55 | F7: 110 | G7: 110 | J7: 100 | K7: =J7*K3 -> 75 | L7: =B7*B3+C7*C3+D7*D3+E7*E3+F7*F3+G7*G3+H7*H3+I7*I3+K7 -> 1042.95 | M7: 4014.05 | N7: 18
A8: 6 | B8: 75 | C8: 6 | D8: 70 | E8: 70 | F8: 140 | G8: 140 | J8: 100 | K8: =J8*K3 -> 75 | L8: =B8*B3+C8*C3+D8*D3+E8*E3+F8*F3+G8*G3+H8*H3+I8*I3+K8 -> 1155.3 | M8: 5169.35 | N8: 22
A9: 7 | B9: 90 | C9: 7 | D9: 80 | E9: 80 | F9: 160 | G9: 160 | J9: 150 | K9: =J9*K3 -> 112.5 | L9: =B9*B3+C9*C3+D9*D3+E9*E3+F9*F3+G9*G3+H9*H3+I9*I3+K9 -> 1399.7 | M9: 6569.05 | N9: 24
A10: 8 | B10: 120 | C10: 8 | D10: 90 | E10: 90 | F10: 180 | G10: 180 | J10: 150 | K10: =J10*K3 -> 112.5 | L10: =B10*B3+C10*C3+D10*D3+E10*E3+F10*F3+G10*G3+H10*H3+I10*I3+K10 -> 1786.6 | M10: 8355.65 | N10: 35
A11: 9 | B11: 120 | C11: 9 | D11: 50 | E11: 50 | F11: 100 | G11: 100 | H11: 4 | J11: 150 | K11: =J11*K3 -> 112.5 | L11: =B11*B3+C11*C3+D11*D3+E11*E3+F11*F3+G11*G3+H11*H3+I11*I3+K11 -> 2199 | M11: 10554.65 | O11: 20
A12: 10 | B12: 120 | C12: 12 | D12: 50 | E12: 50 | F12: 100 | G12: 100 | H12: 4 | J12: 150 | K12: =J12*K3 -> 112.5 | L12: =B12*B3+C12*C3+D12*D3+E12*E3+F12*F3+G12*G3+H12*H3+I12*I3+K12 -> 2223 | M12: 12777.65 | O12: 20
A13: 11 | B13: 120 | C13: 12 | D13: 50 | E13: 50 | F13: 100 | G13: 100 | H13: 4 | J13: 150 | K13: =J13*K3 -> 112.5 | L13: =B13*B3+C13*C3+D13*D3+E13*E3+F13*F3+G13*G3+H13*H3+I13*I3+K13 -> 2223 | M13: 15000.65 | O13: 30
A14: 12 | B14: 120 | C14: 15 | D14: 50 | E14: 50 | F14: 100 | G14: 100 | H14: 4 | J14: 150 | K14: =J14*K3 -> 112.5 | L14: =B14*B3+C14*C3+D14*D3+E14*E3+F14*F3+G14*G3+H14*H3+I14*I3+K14 -> 2247 | M14: 17247.65 | O14: 40
A15: 13 | B15: 120 | D15: 50 | E15: 50 | F15: 100 | G15: 100 | H15: 4 | I15: 4 | J15: 300 | K15: =J15*K3 -> 225 | L15: =B15*B3+C15*C3+D15*D3+E15*E3+F15*F3+G15*G3+H15*H3+I15*I3+K15 -> 2419.5 | M15: 19667.15 | O15: 100
A16: 14 | B16: 120 | D16: 50 | E16: 50 | F16: 100 | G16: 100 | H16: 4 | I16: 8 | J16: 300 | K16: =J16*K3 -> 225 | L16: =B16*B3+C16*C3+D16*D3+E16*E3+F16*F3+G16*G3+H16*H3+I16*I3+K16 -> 2599.5 | M16: 22266.65 | O16: 150
A17: 15 | B17: 120 | D17: 50 | E17: 50 | F17: 100 | G17: 100 | H17: 4 | I17: 12 | J17: 300 | K17: =J17*K3 -> 225 | L17: =B17*B3+C17*C3+D17*D3+E17*E3+F17*F3+G17*G3+H17*H3+I17*I3+K17 -> 2779.5 | M17: 25046.15 | O17: 200
A18: 数目 | B18: =SUM(B4:B17) -> 1330 | C18: =SUM(C4:C17) -> 79 | D18: 735 | E18: 735 | F18: 1470 | G18: 1470 | H18: 28 | I18: 24 | J18: 成本 | L18: =SUM(L4:L17)+L2 -> 25046.15 | N18: =SUM(N4:N17) -> 111 | O18: =SUM(O11:O17) -> 560
A19: 小计 | B19: =B18*B3 -> 15960 | C19: =C18*C3 -> 632 | D19: 110.25 | E19: 1102.5 | F19: 88.2 | G19: 88.2 | H19: 3360 | I19: 1080 | J19: 900 | K19: =SUM(K4:K17) -> 1725 | N19: =N18*N3 -> 55500 | O19: =O18*O3 -> 840000
A20: 百分比 | B20: =B19/L18 -> 0.6372236851 | C20: =C19/L18 -> 0.02523341911 | D20: =D19/L18 -> 0.00440187414 | E20: =E19/L18 -> 0.0440187414 | F20: =F19/L18 -> 0.003521499312 | G20: =G19/L18 -> 0.003521499312 | H20: =H19/L18 -> 0.1341523548 | I20: =I19/L18 -> 0.04312039974 | J20: =J19/L18 -> 0.03593366645 | K20: =K19/L18 -> 0.0688728607

Sheet Sheet2

Sheet Sheet3
